Workbook

Sheet 1
B1: ESCALAS SALARIALES VIGENTES BANCO CENTRAL Y ENTES DESCONCENTRADOS AÑO 2017
B2: ESCALA GERENCIAL GLOBAL
B3: Categoría | C3: Puesto | D3: Salario Único Semanal | E3: Prohibición Semanal | F3: Salario Contratación Semanal | G3: Salario Bisemanal | H3: Salario Mensual
B4: 1 | C4: Subauditor interno | D4: 885905 | E4: 330443 | F4: =+D4+E4 -> 1216348 | G4: =+F4*2 -> 2432696 | H4: =+G4*2.16666666666667 -> 5270841.333
B5: 2 | C5: Auditor interno | D5: 1122147 | E5: 418561 | F5: =+D5+E5 -> 1540708 | G5: =+F5*2 -> 3081416 | H5: =+G5*2.16666666666667 -> 6676401.333
B6: 3 | C6: Subgerente - Intendente | D6: 1181206 | E6: 440590 | F6: =+D6+E6 -> 1621796 | G6: =+F6*2 -> 3243592 | H6: =+G6*2.16666666666667 -> 7027782.667
B7: 4 | C7: Gerente - Superintendente | D7: 1603715 | E7: 598186 | F7: =+D7+E7 -> 2201901 | G7: =+F7*2 -> 4403802 | H7: =+G7*2.16666666666667 -> 9541571
B8: 5 | C8: Presidente | D8: 1696950 | E8: 632962.35 | F8: =+D8+E8 -> 2329912.35 | G8: =+F8*2 -> 4659824.7 | H8: =+G8*2.16666666666667 -> 10096286.85
B9: =+'1CONCARGAS'!B10:L10 -> Montos congelados con base en el artículo 4 del acta de la sesión de la Junta Directiva del BCCR 5676-2015, celebrada el 21 de enero del 2015, mantienen dicha condición con base en el artículo 4 del acta de la sesión 5714-2016, celebrada el 9 de marzo del 2016 y se mantiene en dicha condición según la sesión 5754-2017, artículo 8 del 25 de enero del 2017.
B11: ESCALA REGULAR GLOBAL
B12: Categoría | C12: Puesto | D12: Salario Único Semanal | E12: Prohibición Semanal | F12: Salario Contratación Semanal | G12: Salario Bisemanal | H12: Salario Mensual
B13: 1 | C13: Asistente Servicios Generales 1 | D13: 93647 | E13: 0 | F13: =+SUM(D13:E13) -> 93647 | G13: =+F13*2 -> 187294 | H13: =+G13*2.16666666666667 -> 405803.6667
B14: 2 | C14: Asistente Servicios Generales 2 /Asistente Servicios Institucionales 1 | D14: 115264.0711 | E14: 0 | F14: 115264.0711 | G14: 230528.1422 | H14: 499477.6413
B15: 3 | C15: Asistente Servicios Institucionales 2 | D15: 140558.9026 | E15: 0 | F15: 140558.9026 | G15: 281117.8053 | H15: 609088.5781
B16: 4 | C16: Técnico Servicios Institucionales 1 | D16: 161868.3929 | E16: 0 | F16: 161868.3929 | G16: 323736.7858 | H16: 701429.7025
B17: 5 | C17: Técnico Servicios Institucionales 2 | D17: 173890.6804 | E17: 0 | F17: 173890.6804 | G17: 347781.3608 | H17: 753526.2818
B18: 6 | C18: Profesional Gestión Bancaria (PGB) 1 / Profesional en Enfermería | D18: 246241.4036 | E18: 0 | F18: 246241.4036 | G18: 492482.8072 | H18: 1067046.082
B19: 6 | C19: Profesional Gestión Bancaria (PGB) 1 con prohibición | D19: 246241.4036 | E19: =+F60*0.65 -> 78485.55 | F19: 324726.9536 | G19: =+F19*2 -> 649453.9072 | H19: =+G19*2.16666666666667 -> 1407150.132
B20: 7 | C20: Profesional Gestión Informática (PGI) 1 / PGB 2 / Supervisor 1 | D20: 308378.0462 | E20: 0 | F20: 308378.0462 | G20: 616756.0924 | H20: 1336304.867
B21: 07 AI | C21: Profesional Gestión Auditoría Interna 2 | D21: 308378.0462 | E21: =+F61*0.65 -> 89573.25 | F21: =+SUM(D21:E21) -> 397951.2962 | G21: =+F21*2 -> 795902.5924 | H21: =+G21*2.16666666666667 -> 1724455.617
B22: 8 | C22: Supervisor 2 /Supervisor TI /PGB 3 /PGI 2 | D22: 383249.3673 | E22: 0 | F22: 383249.3673 | G22: 766498.7346 | H22: 1660747.258
B23: 08 AI | C23: Profesional Gestión Auditoría Interna 3 | D23: 383249.3673 | E23: =+F62*0.65 -> 99535.8 | F23: =+SUM(D23:E23) -> 482785.1673 | G23: =+F23*2 -> 965570.3346 | H23: =+G23*2.16666666666667 -> 2092069.058
B24: 9 | C24: Ejecutivo de área /Supervisor Principal /PGB 4 /PGI 3 | D24: 472895.3903 | E24: 0 | F24: 472895.3903 | G24: 945790.7806 | H24: 2049213.358
B25: 09 AI | C25: Profesional Gestión Auditoría Interna 4 | D25: 472895.3903 | E25: =+F63*0.65 -> 123968 | F25: =+SUM(D25:E25) -> 596863.3903 | G25: =+F25*2 -> 1193726.781 | H25: =+G25*2.16666666666667 -> 2586408.025
B26: 10 | C26: Director de Departamento /Líder de Supervisión /Director de Despacho /Analista Experto | D26: 868878.1536 | E26: 0 | F26: 868878.1536 | G26: 1737756.307 | H26: 3765138.665
B27: 10 AI | C27: Director de Departamento con prohibición | D27: 868878.1536 | E27: =+F64*0.65 -> 176319 | F27: =+SUM(D27:E27) -> 1045197.154 | G27: =+F27*2 -> 2090394.307 | H27: =+G27*2.16666666666667 -> 4529187.665
B28: 11 | C28: Profesional Gestión Bancaria 5 | D28: 804754.5715 | E28: 0 | F28: 804754.5715 | G28: 1609509.143 | H28: 3487269.81
B29: 12 | C29: Director de División /Director de Supervisión /Director en Investigación /Profesional en Investigación | D29: 1280367.82 | E29: 0 | F29: 1280367.82 | G29: 2560735.64 | H29: 5548260.554
B30: 12 AI | C30: Director de División con prohibición | D30: 1280367.82 | E30: =+F66*0.65 -> 255691.8 | F30: =+SUM(D30:E30) -> 1536059.62 | G30: =+F30*2 -> 3072119.24 | H30: =+G30*2.16666666666667 -> 6656258.354
B31: 13 | C31: Economista en Jefe | D31: 1508879.64 | E31: 0 | F31: =+SUM(D31:E31) -> 1508879.64 | G31: =+F31*2 -> 3017759.281 | H31: =+G31*2.16666666666667 -> 6538478.441
B32: =+B68 -> Rigen a partir del 1° de enero 2017, según acuerdo de Junta Directiva de la sesión 5754-2017, artículo 8 del 25 de enero del 2017.
B33: ESCALA SERVICIOS ESPECIALES
B34: Categoría | C34: Puesto | D34: Salario Único Semanal | E34: Costo de Vida Semanal | F34: Salario Contratación Semanal | G34: Salario Bisemanal | H34: Salario Mensual
B35: 5 | C35: Asesor Técnico | D35: =+D17 -> 173890.6804 | E35: 0 | F35: =+SUM(D35:E35) -> 173890.6804 | G35: =+F35*2 -> 347781.3608 | H35: =+G35*2.16666666666667 -> 753526.2818
B36: 6 | C36: Asesor 1 | D36: =+D18 -> 246241.4036 | E36: 0 | F36: 246241.4036 | G36: 492482.8072 | H36: 1067046.082
B37: 7 | C37: Asesor 2 | D37: =+D20 -> 308378.0462 | E37: 0 | F37: 308378.0462 | G37: 616756.0924 | H37: 1336304.867
B38: 8 | C38: Asesor 3 | D38: =+D22 -> 383249.3673 | E38: 0 | F38: 383249.3673 | G38: 766498.7346 | H38: 1660747.258
B39: 9 | C39: Asesor 4 | D39: =+D24 -> 472895.3903 | E39: 0 | F39: 472895.3903 | G39: 945790.7806 | H39: 2049213.358
B40: 12 | C40: Asesor en Investigación | D40: =+D30 -> 1280367.82 | E40: 0 | F40: 1280367.82 | G40: 2560735.64 | H40: 5548260.554
B42: ESCALA GERENCIAL DE BÁSICO MÁS PLUSES
B43: Categoría | C43: Puesto | D43: Salario Base Semanal | E43: Costo de Vida Semanal | F43: Salario Contratación Semanal | G43: Salario Bisemanal | H43: Salario Mensual
C44: Subauditor interno | D44: =+D45*1.15 -> 443727.5
B45: 1 | C45: Subauditor interno | D45: 385850 | E45: 0 | F45: =+D45+E45 -> 385850 | G45: =+F45*2 -> 771700 | H45: =+G45*2.16666666666667 -> 1672016.667
B46: 2 | C46: Auditor interno | D46: 488743 | E46: 0 | F46: =+D46+E46 -> 488743 | G46: =+F46*2 -> 977486 | H46: =+G46*2.16666666666667 -> 2117886.333
B47: 3 | C47: Subgerente - Intendente | D47: 618002 | E47: 0 | F47: =+D47+E47 -> 618002 | G47: =+F47*2 -> 1236004 | H47: =+G47*2.16666666666667 -> 2678008.667
B48: 4 | C48: Gerente - Superintendente | D48: 635414 | E48: 0 | F48: =+D48+E48 -> 635414 | G48: =+F48*2 -> 1270828 | H48: =+G48*2.16666666666667 -> 2753460.667
B49: =+B9 -> Montos congelados con base en el artículo 4 del acta de la sesión de la Junta Directiva del BCCR 5676-2015, celebrada el 21 de enero del 2015, mantienen dicha condición con base en el artículo 4 del acta de la sesión 5714-2016, celebrada el 9 de marzo del 2016 y se mantiene en dicha condición según la sesión 5754-2017, artículo 8 del 25 de enero del 2017.
B50: ESCALA REGULAR DE BÁSICO MÁS PLUSES
B51: Categoría | C51: Puesto | D51: Salario Base Semanal | E51: Costo de Vida Semanal | F51: Salario Contratación Semanal | G51: Salario Bisemanal | H51: Salario Mensual
B52: 4 | C52: Asistente Servicios Generales 1 | D52: 42671 | E52: 3012 | F52: =+D52+E52 -> 45683 | G52: =+F52*2 -> 91366 | H52: =+G52*2.16666666666667 -> 197959.6667
B53: 5 | C53: Asistente Servicios Generales 1 | D53: 45656 | E53: 3012 | F53: 48668 | G53: 97336 | H53: 210894.6667
B54: 6 | C54: Asistente Servicios Generales 2 | D54: 48857 | E54: 3012 | F54: 51869 | G54: 103738 | H54: 224765.6667
B55: 7 | C55: Asistente Servicios Generales 2 | D55: 52277 | E55: 3012 | F55: 55289 | G55: 110578 | H55: 239585.6667
B56: 8 | C56: Asistente Servicios Institucionales 1 | D56: 55937 | E56: 3012 | F56: 58949 | G56: 117898 | H56: 255445.6667
B57: 9 | C57: Asistente Servicios Institucionales 2 | D57: 59850 | E57: 3012 | F57: 62862 | G57: 125724 | H57: 272402
B58: 10 | C58: Técnico Servicios Institucionales 1 | D58: 64038 | E58: 3012 | F58: 67050 | G58: 134100 | H58: 290550
B59: 12 | C59: Técnico Servicios Institucionales 2 | D59: 79442 | E59: 3012 | F59: 82454 | G59: 164908 | H59: 357300.6667
B60: 19 | C60: Profesional Gestión Bancaria (PGB) 1 / Profesional en Enfermerería | D60: 117735 | E60: 3012 | F60: 120747 | G60: 241494 | H60: 523237
B61: 21 | C61: Profesional Gestión Informática (PGI) 1 / PGB 2 / Supervisor 1 | D61: 134793 | E61: 3012 | F61: 137805 | G61: 275610 | H61: 597155
B62: 22 | C62: Supervisor 2 /Supervisor TI /PGB 3 /PGI 2 | D62: 150120 | E62: 3012 | F62: 153132 | G62: 306264 | H62: 663572
B63: 25 | C63: Ejecutivo de área /Supervisor Principal /PGB 4 /PGI 3 | D63: 187708 | E63: 3012 | F63: 190720 | G63: 381440 | H63: 826453.3333
B64: 31 | C64: Director de Departamento /Líder de Supervisión /Director de Despacho /Analista Experto | D64: 268248 | E64: 3012 | F64: 271260 | G64: 542520 | H64: 1175460
B65: 32 | C65: Profesional Gestión Bancaria 5 | D65: 291980 | E65: 3012 | F65: =+D65+E65 -> 294992 | G65: =+F65*2 -> 589984 | H65: =+G65*2.16666666666667 -> 1278298.667
B66: 36 | C66: Director de División /Director de Supervisión /Director en Investigación /Profesional en Investigación | D66: 390360 | E66: 3012 | F66: 393372 | G66: 786744 | H66: 1704612
B67: 37 | C67: Economista en Jefe | D67: 458927 | E67: 3012 | F67: 461939 | G67: 923878 | H67: 2001735.667
B68: Rigen a partir del 1° de enero 2017, según acuerdo de Junta Directiva de la sesión 5754-2017, artículo 8 del 25 de enero del 2017.

Sheet 1CONCARGAS
B1: =+'1'!B1:H1 -> ESCALAS SALARIALES VIGENTES BANCO CENTRAL Y ENTES DESCONCENTRADOS AÑO 2017
B2: ESCALA GERENCIAL GLOBAL
D3: Montos semanales en colones | G3: Montos bisemanales en colones | J3: Montos mensuales promedio
B4: Categoría | C4: Puesto | D4: Salario Contratación Semanal | E4: Cargas Patronales | F4: Salario semanal con Cargas Patronales | G4: Salario Bisemanal | H4: Cargas Patronales | I4: Salario Bisemanal con Cargas Patronales | J4: Salario Mensual | K4: Cargas Patronales | L4: Salario Mensual con Cargas Patronales
B5: 1 | C5: Subauditor interno | D5: =+'1'!F4 -> 1216348 | E5: =+D5*0.3999333 -> 486458.0696 | F5: =+D5+E5 -> 1702806.07 | G5: =+D5*2 -> 2432696 | H5: =+G5*0.3999333 -> 972916.1392 | I5: =+G5+H5 -> 3405612.139 | J5: =+G5*2.16666666666667 -> 5270841.333 | K5: =+J5*0.3999333 -> 2107984.968 | L5: =+J5+K5 -> 7378826.302
B6: 2 | C6: Auditor interno | D6: =+'1'!F5 -> 1540708 | E6: =+D6*0.3999333 -> 616180.4348 | F6: =+D6+E6 -> 2156888.435 | G6: =+D6*2 -> 3081416 | H6: =+G6*0.3999333 -> 1232360.87 | I6: =+G6+H6 -> 4313776.87 | J6: =+G6*2.16666666666667 -> 6676401.333 | K6: =+J6*0.3999333 -> 2670115.217 | L6: =+J6+K6 -> 9346516.551
B7: 3 | C7: Subgerente - Intendente | D7: =+'1'!F6 -> 1621796 | E7: 648610.2262 | F7: 2270406.226 | G7: 3243592 | H7: 1297220.452 | I7: 4540812.452 | J7: 7027782.667 | K7: 2810644.314 | L7: 9838426.98
B8: 4 | C8: Gerente - Superintendente | D8: =+'1'!F7 -> 2201901 | E8: 880613.5332 | F8: 3082514.533 | G8: 4403802 | H8: 1761227.066 | I8: 6165029.066 | J8: 9541571 | K8: 3815991.977 | L8: 13357562.98
B9: 5 | C9: Presidente | D9: =+'1'!F8 -> 2329912.35 | E9: 931809.5348 | F9: 3261721.885 | G9: 4659824.7 | H9: 1863619.07 | I9: 6523443.77 | J9: 10096286.85 | K9: 4037841.318 | L9: 14134128.17
B10: Montos congelados con base en el artículo 4 del acta de la sesión de la Junta Directiva del BCCR 5676-2015, celebrada el 21 de enero del 2015, mantienen dicha condición con base en el artículo 4 del acta de la sesión 5714-2016, celebrada el 9 de marzo del 2016 y se mantiene en dicha condición según la sesión 5754-2017, artículo 8 del 25 de enero del 2017.
B12: ESCALA REGULAR GLOBAL
D13: Montos semanales en colones | G13: Montos bisemanales en colones | J13: Montos mensuales promedio
B14: Categoría | C14: Puesto | D14: Salario Contratación Semanal | E14: Cargas Patronales | F14: Salario semanal con Cargas Patronales | G14: Salario Bisemanal | H14: Cargas Patronales | I14: Salario Bisemanal con Cargas Patronales | J14: Salario Mensual | K14: Cargas Patronales | L14: Salario Mensual con Cargas Patronales
B15: 1 | C15: Asistente Servicios Generales 1 | D15: =+'1'!F13 -> 93647 | E15: =+D15*0.3999333 -> 37452.55375 | F15: =+E15+D15 -> 131099.5537 | G15: =+D15*2 -> 187294 | H15: =+G15*0.3999333 -> 74905.10749 | I15: =+H15+G15 -> 262199.1075 | J15: =+G15*2.16666666666667 -> 405803.6667 | K15: =+J15*0.3999333 -> 162294.3996 | L15: =+K15+J15 -> 568098.0662
B16: 2 | C16: Asistente Servicios Generales 2 /Asistente Servicios Institucionales 1 | D16: =+'1'!F14 -> 115264.0711 | E16: =+D16*0.3999333 -> 46097.94032 | F16: =+E16+D16 -> 161362.0114 | G16: =+D16*2 -> 230528.1422 | H16: =+G16*0.3999333 -> 92195.88064 | I16: =+H16+G16 -> 322724.0228 | J16: =+G16*2.16666666666667 -> 499477.6413 | K16: =+J16*0.3999333 -> 199757.7414 | L16: =+K16+J16 -> 699235.3827
B17: 3 | C17: Asistente Servicios Institucionales 2 | D17: =+'1'!F15 -> 140558.9026 | E17: 56214.18578 | F17: 196773.0884 | G17: 281117.8053 | H17: 112428.3716 | I17: 393546.1768 | J17: 609088.5781 | K17: 243594.805 | L17: 852683.3832
B18: 4 | C18: Técnico Servicios Institucionales 1 | D18: =+'1'!F16 -> 161868.3929 | E18: 64736.56053 | F18: 226604.9534 | G18: 323736.7858 | H18: 129473.1211 | I18: 453209.9068 | J18: 701429.7025 | K18: 280525.0956 | L18: 981954.7981
B19: 5 | C19: Técnico Servicios Institucionales 2 | D19: =+'1'!F17 -> 173890.6804 | E19: 69544.67366 | F19: 243435.3541 | G19: 347781.3608 | H19: 139089.3473 | I19: 486870.7082 | J19: 753526.2818 | K19: 301360.2525 | L19: 1054886.534
B20: 6 | C20: Profesional Gestión Bancaria (PGB) 1 / Profesional en Enfermería | D20: =+'1'!F18 -> 246241.4036 | E20: 98480.13713 | F20: 344721.5407 | G20: 492482.8072 | H20: 196960.2743 | I20: 689443.0814 | J20: 1067046.082 | K20: 426747.2609 | L20: 1493793.343
B21: 7 | C21: Profesional Gestión Informática (PGI) 1 / PGB 2 / Supervisor 1 | D21: =+'1'!F20 -> 308378.0462 | E21: 123330.6497 | F21: 431708.6958 | G21: 616756.0924 | H21: 246661.2993 | I21: 863417.3917 | J21: 1336304.867 | K21: 534432.8152 | L21: 1870737.682
B22: 07 AI | C22: Profesional Gestión Auditoría Interna 2 | D22: =+'1'!F21 -> 397951.2962 | E22: 159153.9751 | F22: 557105.2713 | G22: 795902.5924 | H22: 318307.9502 | I22: 1114210.543 | J22: 1724455.617 | K22: 689667.2255 | L22: 2414122.842
B23: 8 | C23: Supervisor 2 /Supervisor TI /PGB 3 /PGI 2 | D23: =+'1'!F22 -> 383249.3673 | E23: 153274.1842 | F23: 536523.5515 | G23: 766498.7346 | H23: 306548.3684 | I23: 1073047.103 | J23: 1660747.258 | K23: 664188.1315 | L23: 2324935.39
B24: 08 AI | C24: Profesional Gestión Auditoría Interna 3 | D24: =+'1'!F23 -> 482785.1673 | E24: 193081.8651 | F24: 675867.0324 | G24: 965570.3346 | H24: 386163.7303 | I24: 1351734.065 | J24: 2092069.058 | K24: 836688.0823 | L24: 2928757.141
B25: 9 | C25: Ejecutivo de área /Supervisor Principal /PGB 4 /PGI 3 | D25: =+'1'!F24 -> 472895.3903 | E25: 189126.614 | F25: 662022.0043 | G25: 945790.7806 | H25: 378253.228 | I25: 1324044.009 | J25: 2049213.358 | K25: 819548.6606 | L25: 2868762.019
B26: 09 AI | C26: Profesional Gestión Auditoría Interna 4 | D26: =+'1'!F25 -> 596863.3903 | E26: 238705.5453 | F26: 835568.9356 | G26: 1193726.781 | H26: 477411.0906 | I26: 1671137.871 | J26: 2586408.025 | K26: 1034390.696 | L26: 3620798.721
B27: 10 | C27: Director de Departamento /Líder de Supervisión /Director de Despacho /Analista Experto | D27: =+'1'!F26 -> 868878.1536 | E27: 347493.3072 | F27: 1216371.461 | G27: 1737756.307 | H27: 694986.6145 | I27: 2432742.922 | J27: 3765138.665 | K27: 1505804.331 | L27: 5270942.997
B28: 10 AI | C28: Director de Departamento con prohibición | D28: =+'1'!F27 -> 1045197.154 | E28: 418009.1468 | F28: 1463206.3 | G28: 2090394.307 | H28: 836018.2935 | I28: 2926412.601 | J28: 4529187.665 | K28: 1811372.969 | L28: 6340560.635
B29: 11 | C29: Profesional Gestión Bancaria 5 | D29: =+'1'!F28 -> 804754.5715 | E29: 321848.1515 | F29: 1126602.723 | G29: 1609509.143 | H29: 643696.303 | I29: 2253205.446 | J29: 3487269.81 | K29: 1394675.323 | L29: 4881945.133
B30: 12 | C30: Director de División /Director de Supervisión /Director en Investigación /Profesional en Investigación | D30: =+'1'!F29 -> 1280367.82 | E30: 512061.7275 | F30: 1792429.548 | G30: 2560735.64 | H30: 1024123.455 | I30: 3584859.095 | J30: 5548260.554 | K30: 2218934.152 | L30: 7767194.706
B31: 12 AI | C31: Director de División con prohibición | D31: =+'1'!F30 -> 1536059.62 | E31: 614321.3928 | F31: 2150381.013 | G31: 3072119.24 | H31: 1228642.786 | I31: 4300762.026 | J31: 6656258.354 | K31: 2662059.369 | L31: 9318317.722
B32: 13 | C32: Economista en Jefe | D32: =+'1'!F31 -> 1508879.64 | E32: 603451.2139 | F32: 2112330.854 | G32: 3017759.281 | H32: 1206902.428 | I32: 4224661.708 | J32: 6538478.441 | K32: 2614955.26 | L32: 9153433.702
B33: =+'1'!B32:H32 -> Rigen a partir del 1° de enero 2017, según acuerdo de Junta Directiva de la sesión 5754-2017, artículo 8 del 25 de enero del 2017.
B34: ESCALA SERVICIOS ESPECIALES
D35: Montos semanales en colones | G35: Montos bisemanales en colones | J35: Montos mensuales promedio
B36: Categoría | C36: Puesto | D36: Salario Contratación Semanal | E36: Cargas Patronales | F36: Salario semanal con Cargas Patronales | G36: Salario Bisemanal | H36: Cargas Patronales | I36: Salario Bisemanal con Cargas Patronales | J36: Salario Mensual | K36: Cargas Patronales | L36: Salario Mensual con Cargas Patronales
B37: 5 | C37: Asesor Técnico | D37: =+D19 -> 173890.6804 | E37: =+D37*0.3999333 -> 69544.67366 | F37: =+D37+E37 -> 243435.3541 | G37: =+D37*2 -> 347781.3608 | H37: =+G37*0.3999333 -> 139089.3473 | I37: =+G37+H37 -> 486870.7082 | J37: =+G37*2.16666666666667 -> 753526.2818 | K37: =+J37*0.3999333 -> 301360.2525 | L37: =+J37+K37 -> 1054886.534
B38: 6 | C38: Asesor 1 | D38: =+D20 -> 246241.4036 | E38: =+D38*0.3999333 -> 98480.13713 | F38: =+D38+E38 -> 344721.5407 | G38: 492482.8072 | H38: =+G38*0.3999333 -> 196960.2743 | I38: =+G38+H38 -> 689443.0814 | J38: 1067046.082 | K38: =+J38*0.3999333 -> 426747.2609 | L38: =+J38+K38 -> 1493793.343
B39: 7 | C39: Asesor 2 | D39: =+D21 -> 308378.0462 | E39: 123330.6497 | F39: 431708.6958 | G39: 616756.0924 | H39: 246661.2993 | I39: 863417.3917 | J39: 1336304.867 | K39: 534432.8152 | L39: 1870737.682
B40: 8 | C40: Asesor 3 | D40: =+D23 -> 383249.3673 | E40: 153274.1842 | F40: 536523.5515 | G40: 766498.7346 | H40: 306548.3684 | I40: 1073047.103 | J40: 1660747.258 | K40: 664188.1315 | L40: 2324935.39
B41: 9 | C41: Asesor 4 | D41: =+D25 -> 472895.3903 | E41: 189126.614 | F41: 662022.0043 | G41: 945790.7806 | H41: 378253.228 | I41: 1324044.009 | J41: 2049213.358 | K41: 819548.6606 | L41: 2868762.019
B42: 12 | C42: Asesor en Investigación | D42: =+D30 -> 1280367.82 | E42: 512061.7275 | F42: 1792429.548 | G42: 2560735.64 | H42: 1024123.455 | I42: 3584859.095 | J42: 5548260.554 | K42: 2218934.152 | L42: 7767194.706
B44: ESCALA GERENCIAL DE BÁSICO MÁS PLUSES
D45: Montos semanales en colones | G45: Montos bisemanales en colones | J45: Montos mensuales promedio
B46: Categoría | C46: Puesto | D46: Salario Contratación Semanal | E46: Cargas Patronales | F46: Salario semanal con Cargas Patronales | G46: Salario Bisemanal | H46: Cargas Patronales | I46: Salario Bisemanal con Cargas Patronales | J46: Salario Mensual | K46: Cargas Patronales | L46: Salario Mensual con Cargas Patronales
C47: Subauditor interno
B48: 1 | C48: Subauditor interno | D48: =+'1'!F45 -> 385850 | E48: =+D48*0.3999333 -> 154314.2638 | F48: =+D48+E48 -> 540164.2638 | G48: =+D48*2 -> 771700 | H48: =+G48*0.3999333 -> 308628.5276 | I48: =+G48+H48 -> 1080328.528 | J48: =+G48*2.16666666666667 -> 1672016.667 | K48: =+J48*0.3999333 -> 668695.1432 | L48: =+J48+K48 -> 2340711.81
B49: 2 | C49: Auditor interno | D49: =+'1'!F46 -> 488743 | E49: 195464.6008 | F49: 684207.6008 | G49: =+D49*2 -> 977486 | H49: 390929.2017 | I49: 1368415.202 | J49: =+G49*2.16666666666667 -> 2117886.333 | K49: 847013.2703 | L49: 2964899.604
B50: 3 | C50: Subgerente - Intendente | D50: =+'1'!F47 -> 618002 | E50: 247159.5793 | F50: 865161.5793 | G50: 1236004 | H50: 494319.1585 | I50: 1730323.159 | J50: 2678008.667 | K50: 1071024.843 | L50: 3749033.51
B51: 4 | C51: Gerente - Superintendente | D51: =+'1'!F48 -> 635414 | E51: 254123.2179 | F51: 889537.2179 | G51: 1270828 | H51: 508246.4358 | I51: 1779074.436 | J51: 2753460.667 | K51: 1101200.611 | L51: 3854661.278
B52: =+B10 -> Montos congelados con base en el artículo 4 del acta de la sesión de la Junta Directiva del BCCR 5676-2015, celebrada el 21 de enero del 2015, mantienen dicha condición con base en el artículo 4 del acta de la sesión 5714-2016, celebrada el 9 de marzo del 2016 y se mantiene en dicha condición según la sesión 5754-2017, artículo 8 del 25 de enero del 2017.
B53: ESCALA REGULAR DE BÁSICO MÁS PLUSES
D54: Montos semanales en colones | G54: Montos bisemanales en colones | J54: Montos mensuales promedio
B55: Categoría | C55: Puesto | D55: Salario Contratación Semanal | E55: Cargas Patronales | F55: Salario semanal con Cargas Patronales | G55: Salario Bisemanal | H55: Cargas Patronales | I55: Salario Bisemanal con Cargas Patronales | J55: Salario Mensual | K55: Cargas Patronales | L55: Salario Mensual con Cargas Patronales
B56: 4 | C56: Asistente Servicios Generales 1 | D56: =+'1'!F52 -> 45683 | E56: =+D56*0.3999333 -> 18270.15294 | F56: =+D56+E56 -> 63953.15294 | G56: =+D56*2 -> 91366 | H56: =+G56*0.3999333 -> 36540.30589 | I56: =+G56+H56 -> 127906.3059 | J56: =+G56*2.16666666666667 -> 197959.6667 | K56: =+J56*0.3999333 -> 79170.66276 | L56: =+J56+K56 -> 277130.3294
B57: 5 | C57: Asistente Servicios Generales 1 | D57: =+'1'!F53 -> 48668 | E57: 19463.95384 | F57: 68131.95384 | G57: 97336 | H57: 38927.90769 | I57: 136263.9077 | J57: 210894.6667 | K57: 84343.79999 | L57: 295238.4667
B58: 6 | C58: Asistente Servicios Generales 2 | D58: =+'1'!F54 -> 51869 | E58: 20744.14034 | F58: 72613.14034 | G58: 103738 | H58: 41488.28068 | I58: 145226.2807 | J58: 224765.6667 | K58: 89891.2748 | L58: 314656.9415
B59: 7 | C59: Asistente Servicios Generales 2 | D59: =+'1'!F55 -> 55289 | E59: 22111.91222 | F59: 77400.91222 | G59: 110578 | H59: 44223.82445 | I59: 154801.8244 | J59: 239585.6667 | K59: 95818.2863 | L59: 335403.953
B60: 8 | C60: Asistente Servicios Institucionales 1 | D60: =+'1'!F56 -> 58949 | E60: 23575.6681 | F60: 82524.6681 | G60: 117898 | H60: 47151.3362 | I60: 165049.3362 | J60: 255445.6667 | K60: 102161.2284 | L60: 357606.8951
B61: 9 | C61: Asistente Servicios Institucionales 2 | D61: =+'1'!F57 -> 62862 | E61: 25140.6071 | F61: 88002.6071 | G61: 125724 | H61: 50281.21421 | I61: 176005.2142 | J61: 272402 | K61: 108942.6308 | L61: 381344.6308
B62: 10 | C62: Técnico Servicios Institucionales 1 | D62: =+'1'!F58 -> 67050 | E62: 26815.52776 | F62: 93865.52777 | G62: 134100 | H62: 53631.05553 | I62: 187731.0555 | J62: 290550 | K62: 116200.6203 | L62: 406750.6203
B63: 12 | C63: Técnico Servicios Institucionales 2 | D63: =+'1'!F59 -> 82454 | E63: 32976.10032 | F63: =+D63+E63 -> 115430.1003 | G63: 164908 | H63: 65952.20064 | I63: 230860.2006 | J63: 357300.6667 | K63: 142896.4347 | L63: 500197.1014
B64: 19 | C64: Profesional Gestión Bancaria (PGB) 1 / Profesional en Enfermerería | D64: =+'1'!F60 -> 120747 | E64: 48290.74618 | F64: 169037.7462 | G64: 241494 | H64: 96581.49235 | I64: 338075.4924 | J64: 523237 | K64: 209259.9001 | L64: 732496.9001
B65: 21 | C65: Profesional Gestión Informática (PGI) 1 / PGB 2 / Supervisor 1 | D65: =+'1'!F61 -> 137805 | E65: 55112.80841 | F65: 192917.8084 | G65: 275610 | H65: 110225.6168 | I65: 385835.6168 | J65: 597155 | K65: 238822.1698 | L65: 835977.1698
B66: 22 | C66: Supervisor 2 /Supervisor TI /PGB 3 /PGI 2 | D66: =+'1'!F62 -> 153132 | E66: 61242.5861 | F66: 214374.5861 | G66: 306264 | H66: 122485.1722 | I66: 428749.1722 | J66: 663572 | K66: 265384.5397 | L66: 928956.5397
B67: 25 | C67: Ejecutivo de área /Supervisor Principal /PGB 4 /PGI 3 | D67: =+'1'!F63 -> 190720 | E67: 76275.27898 | F67: 266995.279 | G67: 381440 | H67: 152550.558 | I67: 533990.558 | J67: 826453.3333 | K67: 330526.2089 | L67: 1156979.542
B68: 31 | C68: Director de Departamento /Líder de Supervisión /Director de Despacho /Analista Experto | D68: =+'1'!F64 -> 271260 | E68: 108485.907 | F68: 379745.907 | G68: 542520 | H68: 216971.8139 | I68: 759491.8139 | J68: 1175460 | K68: 470105.5968 | L68: 1645565.597
B69: 32 | C69: Profesional Gestión Bancaria 5 | D69: =+'1'!F65 -> 294992 | E69: 117977.124 | F69: 412969.124 | G69: 589984 | H69: 235954.2481 | I69: 825938.2481 | J69: 1278298.667 | K69: 511234.2041 | L69: 1789532.871
B70: 36 | C70: Director de División /Director de Supervisión /Director en Investigación /Profesional en Investigación | D70: =+'1'!F66 -> 393372 | E70: 157322.5621 | F70: 550694.5621 | G70: 786744 | H70: 314645.1242 | I70: 1101389.124 | J70: 1704612 | K70: 681731.1024 | L70: 2386343.102
B71: 37 | C71: Economista en Jefe | D71: =+'1'!F67 -> 461939 | E71: 184744.7887 | F71: 646683.7887 | G71: 923878 | H71: 369489.5773 | I71: 1293367.577 | J71: 2001735.667 | K71: 800560.7509 | L71: 2802296.418
B72: =+B33 -> Rigen a partir del 1° de enero 2017, según acuerdo de Junta Directiva de la sesión 5754-2017, artículo 8 del 25 de enero del 2017.

Sheet EG
H1: >
C4: ESCALA GERENCIAL (Montos semanales)
C5: Puesto | D5: Categoría | E5: Salario Único (Escala Global) | F5: Salario base (Escala de Básico Más Pluses)
C6: Presidente | D6: 5 | E6: =+'1'!D8 -> 1696950
C7: Gerente - Superintendente | D7: 4 | E7: =+'1'!D7 -> 1603715 | F7: =+'1'!D48 -> 635414
C8: Subgerente - Intendente | D8: 3 | E8: =+'1'!D6 -> 1181206 | F8: =+'1'!D47 -> 618002
C9: Auditor interno | D9: 2 | E9: =+'1'!D5 -> 1122147 | F9: =+'1'!D46 -> 488743
C10: Subauditor interno | D10: 1 | E10: =+'1'!D4 -> 885905 | F10: =+'1'!D45 -> 385850
B12: =+'1'!B9:H9 -> Montos congelados con base en el artículo 4 del acta de la sesión de la Junta Directiva del BCCR 5676-2015, celebrada el 21 de enero del 2015, mantienen dicha condición con base en el artículo 4 del acta de la sesión 5714-2016, celebrada el 9 de marzo del 2016 y se mantiene en dicha condición según la sesión 5754-2017, artículo 8 del 25 de enero del 2017.

Sheet Equivalencias
B1: =+RIGHT('1'!B1,8) -> AÑO 2017
B2: TABLA DE EQUIVALENCIAS ESCALA REGULAR
B4: Puesto | C4: Categorías Escala Global | D4: Categorías Básico Más Pluses
B5: Economista en Jefe | C5: 13 | D5: 37
B6: Director de División Director de Supervisión Director en Investigación Profesional en Investigación | C6: 12 | D6: 36
B7: Profesional Gestión Bancaria 5 | C7: 11 | D7: 32
B8: Director de Departamento, Líder de Supervisión, Director de Despacho, Analista Experto Asesor 5 (Servicios Especiales) | C8: 10 | D8: 31
B9: Ejecutivo de Área Supervisor Principal Profesional Gestión Bancaria 4 Profesional Gestión Auditoría Interna 4 Profesional Gestión Informática 3 Asesor 4 (Servicios Especiales) | C9: 9 | D9: 25
B10: Profesional Gestión Bancaria 3 Profesional Gestión Auditoría Interna 3 Profesional Gestión Informática 2 Supervisor 2 Supervisor TI Asesor 3 (Servicios Especiales) | C10: 8 | D10: 22
B11: Profesional Gestión Bancaria 2 Profesional Gestión Informática 1 Supervisor 1 Asesor 2 (Servicios Especiales) | C11: 7 | D11: 21
B12: Profesional Gestión Bancaria 1 Asesor 1 (Servicios Especiales) | C12: 6 | D12: 19
B13: Técnico Servicios Institucionales 2 | C13: 5 | D13: 12
B14: Técnico Servicios Institucionales 1 | C14: 4 | D14: 10
B15: Asistente Servicios Institucionales 2 | C15: 3 | D15: 9
B16: Asistente Servicios Institucionales 1 | C16: 2 | D16: 8
B17: Asistente Servicios Generales 2 | C17: 2 | D17: 6 – 7
B18: Asistente Servicios Generales 1 | C18: 1 | D18: 4 – 5
B21: TABLA DE EQUIVALENCIAS ESCALA GERENCIAL
B22: Puesto | C22: Categorías Escala Global | D22: Categorías Básico Más Pluses
B23: Presidente | C23: 5 | D23: --
B24: Gerente - Superintendente | C24: 4 | D24: 4
B25: Subgerente - Intendente | C25: 3 | D25: 3 *
B26: Auditor interno | C26: 2 | D26: 2
B27: Subauditor Interno | C27: 1 * | D27: 1
B28: * No hay funcionarios ubicados en dichas categorías

Sheet Escala con puestos
B1: ='1'!B1 & " (Montos Semanales)" -> ESCALAS SALARIALES VIGENTES BANCO CENTRAL Y ENTES DESCONCENTRADOS AÑO 2017 (Montos Semanales)
B2: CLASE DE PUESTO | D2: ESCALA REGULAR GLOBAL | G2: ESCALA REGULAR DE BÁSICO MÁS PLUSES
D3: CAT | E3: SALARIO ÚNICO | G3: CAT | H3: SALARIO BASE | I3: COSTO DE VIDA | J3: TOTAL
B4: Economista en Jefe | D4: 13 | E4: =+'1'!D31 -> 1508879.64 | G4: 37 | H4: =+'1'!D67 -> 458927 | I4: =+'1'!$E$67 -> 3012 | J4: =+H4+I4 -> 461939
B5: Director de División - Director de Supervisión - Director en Investigación - PI | D5: 12 | E5: =+'1'!D29 -> 1280367.82 | G5: 36 | H5: =+'1'!D66 -> 390360 | I5: =+'1'!$E$67 -> 3012 | J5: =+H5+I5 -> 393372
B6: Profesional en Gestión Bancaria 5 | D6: 11 | E6: =+'1'!D28 -> 804754.5715 | G6: 32 | H6: =+'1'!D65 -> 291980 | I6: =+'1'!$E$67 -> 3012 | J6: =+H6+I6 -> 294992
B7: Director de Departamento - Líder de Supervisión - Director Despacho - Analista Experto - Asesor 5 | D7: 10 | E7: =+'1'!D26 -> 868878.1536 | G7: 31 | H7: =+'1'!D64 -> 268248 | I7: =+'1'!$E$67 -> 3012 | J7: 271260
B8: Ejecutivo de Área - Supervisor Principal | D8: 9 | E8: =+E9 -> 472895.3903 | G8: 25 | H8: =+'1'!D63 -> 187708 | I8: =+'1'!$E$67 -> 3012 | J8: 190720
B9: P.G.B. 4 - P.G.A.I. 4 - P.G.I. 3 - Asesor 4 | D9: 9 | E9: =+'1'!D24 -> 472895.3903 | G9: 25 | H9: =+H8 -> 187708 | I9: =+'1'!$E$67 -> 3012 | J9: 190720
B10: P.G.B. 3 - P.G.A.I. 3 - P.G.I. 2 - Supervisor 2 - Supervisor TI - Asesor 3 | D10: 8 | E10: =+'1'!D22 -> 383249.3673 | G10: 22 | H10: =+'1'!D62 -> 150120 | I10: =+'1'!$E$67 -> 3012 | J10: 153132
B11: P.G.B. 2 - P.G.I.1 - Supervisor 1 - Asesor 2 | D11: 7 | E11: =+'1'!D20 -> 308378.0462 | G11: 21 | H11: =+'1'!D61 -> 134793 | I11: =+'1'!$E$67 -> 3012 | J11: 137805
B12: P.G.B. 1 - Asesor 1 | D12: 6 | E12: =+'1'!D18 -> 246241.4036 | G12: 19 | H12: =+'1'!D60 -> 117735 | I12: =+'1'!$E$67 -> 3012 | J12: 120747
B13: Técnico Servicios Institucionales 2 | D13: 5 | E13: =+'1'!D17 -> 173890.6804 | G13: 12 | H13: =+'1'!D59 -> 79442 | I13: =+'1'!$E$67 -> 3012 | J13: 82454
B14: Técnico Servicios Institucionales 1 | D14: 4 | E14: =+'1'!D16 -> 161868.3929 | G14: 10 | H14: =+'1'!D58 -> 64038 | I14: =+'1'!$E$67 -> 3012 | J14: 67050
B15: Asistente Servicios Institucionales 2 | D15: 3 | E15: =+'1'!D15 -> 140558.9026 | G15: 9 | H15: =+'1'!D57 -> 59850 | I15: =+'1'!$E$67 -> 3012 | J15: 62862
B16: Asistente Servicios Institucionales 1 | D16: 2 | E16: =+E17 -> 115264.0711 | G16: 8 | H16: =+'1'!D56 -> 55937 | I16: =+'1'!$E$67 -> 3012 | J16: 58949
B17: Asistente Servicios Generales 2 | D17: 2 | E17: =+'1'!D14 -> 115264.0711 | G17: 7 | H17: =+'1'!D55 -> 52277 | I17: =+'1'!$E$67 -> 3012 | J17: 55289
G18: 6 | H18: =+'1'!D54 -> 48857 | I18: =+'1'!$E$67 -> 3012 | J18: 51869
B19: Asistente Servicios Generales 1 | D19: 1 | E19: =+'1'!D13 -> 93647 | G19: 5 | H19: =+'1'!D53 -> 45656 | I19: =+'1'!$E$67 -> 3012 | J19: 48668
G20: 4 | H20: =+'1'!D52 -> 42671 | I20: =+'1'!$E$67 -> 3012 | J20: 45683
B21: =+'1CONCARGAS'!B33:J33 -> Rigen a partir del 1° de enero 2017, según acuerdo de Junta Directiva de la sesión 5754-2017, artículo 8 del 25 de enero del 2017.

Sheet Homologación
A1: ESCALAS SALARIALES VIGENTES BANCO CENTRAL Y ENTES DESCONCENTRADOS AÑO 2017
A3: CLASE DE PUESTO | B3: ESCALA GLOBAL | G3: ESCALA REGULAR + PLUSES
B4: Cat. | C4: Salario Único Global Semanal | D4: Salario Único Global Bisemanal | E4: Salario Único Global Mensual (Promedio) | G4: Cat. | H4: Salario base Semanal | I4: Costo de Vida | J4: Salario básico pluses + Costo de Vida Semanal | K4: Salario básico pluses + Costo de Vida Bisemanal | L4: Salario básico pluses + Costo de Vida Mensual (Promedio)
A5: Economista en Jefe | B5: 13 | C5: =+'1'!F31 -> 1508879.64 | D5: =+C5*2 -> 3017759.281 | E5: =+D5*2.16666666666667 -> 6538478.441 | G5: 37 | H5: =+'1'!D67 -> 458927 | I5: =+'1'!E67 -> 3012 | J5: =+'1'!F67 -> 461939 | K5: =+J5*2 -> 923878 | L5: =+K5*2.16666666666667 -> 2001735.667
A6: Director de División - Director de Supervisión - Director en Investigación - PI | B6: 12 | C6: =+'1'!F29 -> 1280367.82 | D6: 2560735.64 | E6: 5548260.554 | G6: 36 | H6: =+'1'!D66 -> 390360 | I6: =+'1'!E66 -> 3012 | J6: =+'1'!F66 -> 393372 | K6: =+J6*2 -> 786744 | L6: =+K6*2.16666666666667 -> 1704612
A7: Director División Auditoría Interna (incluye prohibición) | C7: =+'1'!F30 -> 1536059.62 | D7: 3072119.24 | E7: 6656258.354 | L7: 0
A8: Profesional en Gestión Bancaria 5 | B8: 11 | C8: =+'1'!F28 -> 804754.5715 | D8: 1609509.143 | E8: 3487269.81 | G8: 32 | H8: =+'1'!D65 -> 291980 | I8: =+'1'!E65 -> 3012 | J8: =+'1'!F65 -> 294992 | K8: 589984 | L8: 1278298.667
A9: Director de Departamento - Líder de Supervisión - Director Despacho - Analista Experto - Asesor 5 | B9: 10 | C9: =+'1'!F26 -> 868878.1536 | D9: 1737756.307 | E9: 3765138.665 | G9: 31 | H9: =+'1'!D64 -> 268248 | I9: =+'1'!E64 -> 3012 | J9: =+'1'!F64 -> 271260 | K9: 542520 | L9: 1175460
A10: Director Departamento Auditoría Interna (incluye prohibición) | C10: =+'1'!F27 -> 1045197.154 | D10: 2090394.307 | E10: 4529187.665 | L10: 0
A11: Ejecutivo de Área - Supervisor Principal - P.G.B. 4 - P.G.I. 3 - Asesor 4 | B11: 9 | C11: =+'1'!F24 -> 472895.3903 | D11: 945790.7806 | E11: 2049213.358 | G11: 25 | H11: =+'1'!D63 -> 187708 | I11: =+'1'!E63 -> 3012 | J11: =+'1'!F63 -> 190720 | K11: 381440 | L11: 826453.3333
A12: P.G.A.I. 4 (incluye prohibición) | C12: =+'1'!F25 -> 596863.3903 | D12: 1193726.781 | E12: 2586408.025 | L12: 0
A13: P.G.B. 3 - P.G.I. 2 - Supervisor 2 - Supervisor TI - Asesor 3 | B13: 8 | C13: =+'1'!F22 -> 383249.3673 | D13: 766498.7346 | E13: 1660747.258 | G13: 22 | H13: =+'1'!D62 -> 150120 | I13: =+'1'!E62 -> 3012 | J13: =+'1'!F62 -> 153132 | K13: 306264 | L13: 663572
A14: P.G.A.I. 3 (incluye prohibición) | C14: =+'1'!F23 -> 482785.1673 | D14: 965570.3346 | E14: 2092069.058 | L14: 0
A15: Médico (1/2 tiempo) | C15: =+C13/2 -> 191624.6836 | D15: 383249.3673 | E15: 830373.6291 | L15: 0
A16: P.G.B. 2 - P.G.I.1 - Supervisor 1 - Asesor 2 | B16: 7 | C16: =+'1'!F20 -> 308378.0462 | D16: 616756.0924 | E16: 1336304.867 | G16: 21 | H16: =+'1'!D61 -> 134793 | I16: =+'1'!E61 -> 3012 | J16: =+'1'!F61 -> 137805 | K16: 275610 | L16: 597155
A17: P.G.A.I. 2 (incluye prohibición) | C17: =+'1'!F21 -> 397951.2962 | D17: 795902.5924 | E17: 1724455.617 | L17: 0
A18: P.G.B. 1 - Asesor 1 | B18: 6 | C18: =+'1'!F18 -> 246241.4036 | D18: 492482.8072 | E18: 1067046.082 | G18: 19 | H18: =+'1'!D60 -> 117735 | I18: =+'1'!E60 -> 3012 | J18: =+'1'!F60 -> 120747 | K18: 241494 | L18: 523237
A19: P.G.B. 1 (incluye prohibición) | C19: =+'1'!F19 -> 324726.9536 | D19: =+C19*2 -> 649453.9072 | E19: 1407150.132
A20: Enfermero (1/2 tiempo) | C20: =+C18/2 -> 123120.7018 | D20: 246241.4036 | E20: 533523.0411 | L20: 0
A21: Técnico Servicios Institucionales 2 - Asesor TSI2 | B21: 5 | C21: =+'1'!F17 -> 173890.6804 | D21: 347781.3608 | E21: 753526.2818 | G21: 12 | H21: =+'1'!D59 -> 79442 | I21: =+'1'!E59 -> 3012 | J21: =+'1'!F59 -> 82454 | K21: 164908 | L21: 357300.6667
A22: Enfermero (1/2 tiempo) | C22: =+C21/2 -> 86945.34021 | D22: 173890.6804 | E22: 376763.1409 | L22: 0
A23: Técnico Servicios Institucionales 1 | B23: 4 | C23: =+'1'!F16 -> 161868.3929 | D23: 323736.7858 | E23: 701429.7025 | G23: 10 | H23: =+'1'!D58 -> 64038 | I23: =+'1'!E58 -> 3012 | J23: =+'1'!F58 -> 67050 | K23: 134100 | L23: 290550
A24: Asistente Servicios Institucionales 2 | B24: 3 | C24: =+'1'!F15 -> 140558.9026 | D24: 281117.8053 | E24: 609088.5781 | G24: 9 | H24: =+'1'!D57 -> 59850 | I24: =+'1'!E57 -> 3012 | J24: =+'1'!F57 -> 62862 | K24: 125724 | L24: 272402
A25: Asistente Servicios Institucionales 1 | B25: 2 | C25: =+'1'!F14 -> 115264.0711 | D25: 230528.1422 | E25: 499477.6413 | G25: 8 | H25: =+'1'!D56 -> 55937 | I25: =+'1'!E56 -> 3012 | J25: =+'1'!F56 -> 58949 | K25: 117898 | L25: 255445.6667
A26: Asistente Servicios Generales 2 | G26: 7 | H26: =+'1'!D55 -> 52277 | I26: =+'1'!E55 -> 3012 | J26: =+'1'!F55 -> 55289 | K26: 110578 | L26: 239585.6667
G27: 6 | H27: =+'1'!D54 -> 48857 | I27: =+'1'!E54 -> 3012 | J27: =+'1'!F54 -> 51869 | K27: 103738 | L27: 224765.6667
A28: Asistente Servicios Generales 1 | B28: 1 | C28: =+'1'!F13 -> 93647 | D28: =+C28*2 -> 187294 | E28: =+D28*2.16666666666667 -> 405803.6667 | G28: 5 | H28: =+'1'!D53 -> 45656 | I28: =+'1'!E53 -> 3012 | J28: =+'1'!F53 -> 48668 | K28: 97336 | L28: 210894.6667
G29: 4 | H29: =+'1'!D52 -> 42671 | I29: =+'1'!E52 -> 3012 | J29: =+'1'!F52 -> 45683 | K29: 91366 | L29: 197959.6667
A30: Rigen a partir del 1° de enero 2017, según acuerdo de Junta Directiva de la sesión 5754-2017, artículo 8 del 25 de enero del 2017.
A32: CLASE DE PUESTO - ESCALA GERENCIAL | B32: ESCALA GLOBAL | I32: ESCALA PLUSES
B33: Cat. | C33: Salario semanal | D33: Prohibición | E33: Salario semanal | G33: Salario bisemanal | H33: Salario mensual (Promedio) | I33: Cat. | J33: Salario base semanal | K33: Salario bisemanal | L33: Salario mensual (Promedio)
A34: Presidente | B34: 5 | C34: =+'1'!D8 -> 1696950 | D34: =+'1'!E8 -> 632962.35 | E34: =+'1'!F8 -> 2329912.35 | F34: =+'1'!G8 -> 4659824.7 | G34: =+'1'!G8 -> 4659824.7 | H34: =+'1'!H8 -> 10096286.85 | I34: 5 | J34: 0 | K34: 0 | L34: -
A35: Gerente - Superintendente | B35: 4 | C35: =+'1'!D7 -> 1603715 | D35: =+'1'!E7 -> 598186 | E35: =+'1'!F7 -> 2201901 | F35: =+'1'!G7 -> 4403802 | G35: =+'1'!G7 -> 4403802 | H35: =+'1'!H7 -> 9541571 | I35: 4 | J35: =+'1'!D48 -> 635414 | K35: =+'[2]1'!E51 -> 1270828 | L35: =+'[2]1'!F51 -> 2753460.667
A36: Subgerente - Intendente | B36: 3 | C36: =+'1'!D6 -> 1181206 | D36: =+'1'!E6 -> 440590 | E36: =+'1'!F6 -> 1621796 | F36: =+'1'!G6 -> 3243592 | G36: =+'1'!G6 -> 3243592 | H36: =+'1'!H6 -> 7027782.667 | I36: 3 | J36: =+'1'!D47 -> 618002 | K36: =+'[2]1'!E50 -> 1236004 | L36: =+'[2]1'!F50 -> 2678008.667
A37: Auditor interno | B37: 2 | C37: =+'1'!D5 -> 1122147 | D37: =+'1'!E5 -> 418561 | E37: =+'1'!F5 -> 1540708 | F37: =+'1'!G5 -> 3081416 | G37: =+'1'!G5 -> 3081416 | H37: =+'1'!H5 -> 6676401.333 | I37: 2 | J37: =+'1'!D46 -> 488743 | K37: =+'[2]1'!E49 -> 977486 | L37: =+'[2]1'!F49 -> 2117886.333
A38: Subauditor interno | B38: 1 | C38: =+'1'!D4 -> 885905 | D38: =+'1'!E4 -> 330443 | E38: =+'1'!F4 -> 1216348 | F38: =+'1'!G4 -> 2432696 | G38: =+'1'!G4 -> 2432696 | H38: =+'1'!H4 -> 5270841.333 | I38: 1 | J38: =+'1'!D45 -> 385850 | K38: =+'[2]1'!E48 -> 771700 | L38: =+'[2]1'!F48 -> 1672016.667
A39: Montos congelados con base en el artículo 4 del acta de la sesión de la Junta Directiva del BCCR 5676-2015, celebrada el 21 de enero del 2015, mantienen dicha condición con base en el artículo 4 del acta de la sesión 5714-2016, celebrada el 9 de marzo del 2016 y se mantiene en dicha condición según la sesión 5754-2017, artículo 8 del 25 de enero del 2017.

Sheet Escala con puestos (2) (hidden)
B1: ='1'!B1 & " (Montos Semanales)" -> ESCALAS SALARIALES VIGENTES BANCO CENTRAL Y ENTES DESCONCENTRADOS AÑO 2017 (Montos Semanales)
B2: CLASE DE PUESTO | D2: ESCALA REGULAR GLOBAL | G2: ESCALA REGULAR DE BÁSICO MÁS PLUSES
D3: CAT | E3: SALARIO ÚNICO | G3: CAT | H3: SALARIO BASE | I3: COSTO DE VIDA | J3: TOTAL
B4: Economista en Jefe | D4: 13 | E4: =+'1'!D31 -> 1508879.64 | G4: 37 | H4: =+'1'!D67 -> 458927 | I4: =+'1'!$E$67 -> 3012 | J4: =+H4+I4 -> 461939
B5: Director de División - Director de Supervisión - Director en Investigación - PI | D5: 12 | E5: =+'1'!D29 -> 1280367.82 | G5: 36 | H5: =+'1'!D66 -> 390360 | I5: =+'1'!$E$67 -> 3012 | J5: =+H5+I5 -> 393372
B6: Director de División (con prohibición) | D6: 12
B7: Profesional en Gestión Bancaria 5 | D7: 11 | E7: =+'1'!D28 -> 804754.5715 | G7: 32 | H7: =+'1'!D65 -> 291980 | I7: =+'1'!$E$67 -> 3012 | J7: =+H7+I7 -> 294992
B8: Director de Departamento - Líder de Supervisión - Director Despacho - Analista Experto - Asesor 5 | D8: 10 | E8: =+'1'!D26 -> 868878.1536 | G8: 31 | H8: =+'1'!D64 -> 268248 | I8: =+'1'!$E$67 -> 3012 | J8: 271260
B9: Director de Departamento (con prohibición) | D9: 10
B10: Ejecutivo de Área - Supervisor Principal, P.G.B. 4 - P.G.I. 3 - Asesor 4 | D10: 9 | E10: =+'1'!D24 -> 472895.3903 | G10: 25 | H10: =+'1'!D63 -> 187708 | I10: =+'1'!$E$67 -> 3012 | J10: 190720
B11: P.G.A.I. 4 (con prohibición) | D11: 9 | E11: =+'1'!D24 -> 472895.3903
B12: P.G.B. 3 - P.G.A.I. 3 - P.G.I. 2 - Supervisor 2 - Supervisor TI - Asesor 3 | D12: 8 | E12: =+'1'!D22 -> 383249.3673 | G12: 22 | H12: =+'1'!D62 -> 150120 | I12: =+'1'!$E$67 -> 3012 | J12: 153132
B13: P.G.B. 3 (con prohibición) | D13: 8 | G13: 22
B14: Médico (1/2 tiempo) | D14: 8 | G14: 22
B15: P.G.B. 2 - P.G.I.1 - Supervisor 1 - Asesor 2 | D15: 7 | E15: =+'1'!D20 -> 308378.0462 | G15: 21 | H15: =+'1'!D61 -> 134793 | I15: =+'1'!$E$67 -> 3012 | J15: 137805
B16: P.G.B. 1 - Asesor 1 | D16: 6 | E16: =+'1'!D18 -> 246241.4036 | G16: 19 | H16: =+'1'!D60 -> 117735 | I16: =+'1'!$E$67 -> 3012 | J16: 120747
B17: Enfermera profesional (Medio tiempo) | D17: 6
B18: Técnico Servicios Institucionales 2 | D18: 5 | E18: =+'1'!D17 -> 173890.6804 | G18: 12 | H18: =+'1'!D59 -> 79442 | I18: =+'1'!$E$67 -> 3012 | J18: 82454
B19: Técnico Servicios Institucionales 1 | D19: 4 | E19: =+'1'!D16 -> 161868.3929 | G19: 10 | H19: =+'1'!D58 -> 64038 | I19: =+'1'!$E$67 -> 3012 | J19: 67050
B20: Asistente Servicios Institucionales 2 | D20: 3 | E20: =+'1'!D15 -> 140558.9026 | G20: 9 | H20: =+'1'!D57 -> 59850 | I20: =+'1'!$E$67 -> 3012 | J20: 62862
B21: Asistente Servicios Institucionales 1 | D21: 2 | E21: =+E22 -> 115264.0711 | G21: 8 | H21: =+'1'!D56 -> 55937 | I21: =+'1'!$E$67 -> 3012 | J21: 58949
B22: Asistente Servicios Generales 2 | D22: 2 | E22: =+'1'!D14 -> 115264.0711 | G22: 7 | H22: =+'1'!D55 -> 52277 | I22: =+'1'!$E$67 -> 3012 | J22: 55289
G23: 6 | H23: =+'1'!D54 -> 48857 | I23: =+'1'!$E$67 -> 3012 | J23: 51869
B24: Asistente Servicios Generales 1 | D24: 1 | E24: =+'1'!D13 -> 93647 | G24: 5 | H24: =+'1'!D53 -> 45656 | I24: =+'1'!$E$67 -> 3012 | J24: 48668
G25: 4 | H25: =+'1'!D52 -> 42671 | I25: =+'1'!$E$67 -> 3012 | J25: 45683
B26: =+'1'!B68:G68 -> Rigen a partir del 1° de enero 2017, según acuerdo de Junta Directiva de la sesión 5754-2017, artículo 8 del 25 de enero del 2017.

Sheet 2 (hidden)
A1: CAT | B1: Global | C1: Prohibición | D1: Mer+Proh | E1: PUESTO
A2: 1 | B2: =+#REF! ->  | C2: =+#REF! ->  | D2: =+B2+C2 ->  | E2: Subauditores internos
A3: 2 | B3: =+#REF! ->  | C3: =+#REF! ->  | E3: Auditor Interno
A4: 3 | B4: =+#REF! ->  | C4: =+#REF! -> 
A5: 4 | B5: =+#REF! ->  | C5: =+#REF! -> 
A6: 5 | B6: =+#REF! ->  | C6: =+#REF! -> 
A7: 01 | B7: =+#REF! ->  | C7: 0
A8: 02 | B8: =+#REF! ->  | C8: 0
A9: 03 | B9: =+#REF! ->  | C9: 0
A10: 04 | B10: =+#REF! ->  | C10: 0
A11: 05 | B11: =+#REF! ->  | C11: 0
A12: 06 | B12: =+#REF! ->  | C12: 0
A13: 07 | B13: =+#REF! ->  | C13: 0
A14: 08 | B14: =+#REF! ->  | C14: =+#REF! ->  | D14: =+B14+C14 -> 
A15: 09 | B15: =+#REF! ->  | C15: =+#REF! ->  | D15: =+B15+C15 -> 
A16: 10 | B16: =+#REF! ->  | C16: =+#REF! ->  | D16: =+B16+C16 -> 
A17: 11 | B17: =+#REF! ->  | C17: 0 | D17: =+B17+C17 -> 
A18: 12 | B18: =+#REF! ->  | C18: =+#REF!*0.65 ->  | D18: =+B18+C18 -> 
